bitfinex/quotes_BTCUSD_20250523
["timestamp","ask_amount","ask_price","bid_price","bid_amount"]
[1747981983779,1.07205641,110520.0,110510.0,0.70184]
[1747981987137,1.07205641,110520.0,110510.0,0.43072]
[1747981987721,1.07205641,110520.0,110510.0,0.70188]
[1747981988602,1.07205641,110520.0,110510.0,0.70088]
[1747981989066,1.07205641,110520.0,110510.0,0.70188]
[1747981989695,1.07205641,110520.0,110510.0,0.69888]
[1747981989868,1.07605641,110520.0,110510.0,0.69888]
[1747981992148,1.07605641,110520.0,110510.0,4e-05]
[1747981992564,1.18011877,110520.0,110510.0,4e-05]
[1747981992892,1.18011877,110520.0,110510.0,0.2712]
[1747981993095,0.03621399,110450.0,110440.0,0.08826167]
[1747981993298,0.0181065,110450.0,110440.0,4.93003914]
[1747981993507,0.19011389,110460.0,110450.0,0.23098457]
[1747981993508,0.01810552,110460.0,110450.0,0.23098457]
[1747981993747,0.02715783,110460.0,110450.0,4.96510686]
[1747981993955,0.03621071,110460.0,110450.0,4.96510686]
[1747981994394,0.03621071,110460.0,110450.0,4.96526028]
[1747981994606,0.03621071,110460.0,110450.0,4.94715353]
[1747981994607,0.22632477,110460.0,110450.0,4.94715353]
[1747981994827,0.22632477,110460.0,110450.0,4.96020699]
[1747981995035,0.03621137,110460.0,110450.0,4.96926053]
[1747981995252,0.03621137,110460.0,110450.0,5.35970053]
[1747981995681,0.21727238,110460.0,110450.0,5.08448707]
[1747981995910,0.19916694,110460.0,110450.0,4.85350242]
[1747981996137,0.19916694,110460.0,110450.0,5.05607342]
[1747981996991,0.19916694,110460.0,110450.0,5.05612729]
[1747981997203,0.19011406,110460.0,110450.0,5.05612729]
[1747981997426,0.18206101,110460.0,110450.0,4.20887342]
[1747981997637,0.21206101,110460.0,110450.0,4.20887342]
[1747981998507,0.21206101,110460.0,110450.0,4.21187342]
[1747981999583,0.24286101,110460.0,110450.0,0.82531342]
[1747981999794,0.24286101,110460.0,110450.0,1.09651342]
[1747982000036,0.24286101,110460.0,110450.0,5.12270242]
[1747982001095,0.01910552,110460.0,110450.0,5.32188732]
[1747982001347,0.03721088,110460.0,110450.0,5.36354086]
[1747982001553,0.02815832,110460.0,110450.0,5.37259415]
[1747982001763,0.2182727,110460.0,110450.0,5.3876874]
[1747982001998,0.2182727,110460.0,110450.0,5.39674102]
[1747982002203,0.03721169,110460.0,110450.0,5.40579456]
[1747982002324,0.2092199,110460.0,110450.0,5.40579456]
[1747982002529,0.2092199,110460.0,110450.0,5.13459456]
[1747982002767,0.20016702,110460.0,110450.0,5.3545274]
[1747982002969,0.20016702,110460.0,110450.0,5.3219274]
[1747982004023,0.19111406,110460.0,110450.0,5.3219274]
[1747982004825,0.19111406,110460.0,110450.0,5.33098102]
[1747982005361,0.19111406,110460.0,110450.0,5.3219274]
[1747982005570,0.19111406,110460.0,110450.0,5.33098102]
[1747982006011,0.19111406,110460.0,110450.0,5.34003456]
[1747982006227,0.0100528,110460.0,110450.0,5.34908785]
[1747982006488,0.01005231,110460.0,110450.0,5.41438785]
[1747982006723,0.97327179,110480.0,110470.0,0.00905223]
[1747982006724,0.90957179,110480.0,110470.0,0.00905223]
[1747982006957,0.63187141,110490.0,110480.0,0.19007957]
[1747982007197,0.58767234,110490.0,110480.0,4.65071965]
[1747982007441,0.578622,110490.0,110480.0,4.64166857]
[1747982007689,0.56957141,110490.0,110480.0,4.451589]
[1747982007933,0.60057141,110490.0,110480.0,4.451589]
[1747982008175,0.56957141,110490.0,110480.0,4.722829]
[1747982008414,0.4066006,110490.0,110480.0,4.94006189]
[1747982008645,0.59666304,110490.0,110480.0,4.93101122]
[1747982009121,0.59666304,110490.0,110480.0,4.93301122]
[1747982010313,0.20816304,110490.0,110480.0,4.93401122]
[1747982010810,0.19006244,110490.0,110480.0,4.725829]
[1747982011069,0.19006244,110490.0,110480.0,4.73488033]
[1747982011527,0.22306244,110490.0,110480.0,4.725789]
[1747982011736,0.25536244,110490.0,110480.0,4.725789]
[1747982012504,0.25536244,110490.0,110480.0,4.725749]
[1747982012718,0.25536244,110490.0,110480.0,1.61066]
[1747982012945,0.684908,110490.0,110480.0,0.69956]
[1747982013187,0.684908,110490.0,110480.0,0.80086]
[1747982014120,0.59536244,110490.0,110480.0,0.80086]
[1747982015403,0.59536244,110490.0,110480.0,0.83046]
[1747982018425,0.59536244,110490.0,110480.0,1.22098]
[1747982019917,0.684908,110490.0,110480.0,0.81888]
[1747982020120,0.684908,110490.0,110480.0,1.09008]
[1747982020343,0.684908,110490.0,110480.0,0.39352]
[1747982020560,0.684908,110490.0,110480.0,0.81888]
[1747982020771,0.684908,110490.0,110480.0,1.09008]
[1747982020960,0.684908,110490.0,110480.0,1.08708]
[1747982021337,0.685908,110490.0,110480.0,1.08708]
[1747982021688,0.685908,110490.0,110480.0,0.81588]
[1747982021977,0.686908,110490.0,110480.0,1.08708]
[1747982024061,0.686908,110490.0,110440.0,0.27586371]
[1747982024062,0.02716037,110450.0,110440.0,0.27586371]
[1747982024268,0.03621399,110450.0,110440.0,4.81711185]
[1747982024481,0.03621399,110450.0,110440.0,4.82616613]
[1747982025023,0.03621399,110450.0,110440.0,4.39175185]
[1747982025227,0.2172914,110450.0,110440.0,5.20767185]
[1747982025545,0.21729205,110450.0,110440.0,5.48391193]
[1747982026109,0.20823868,110450.0,110440.0,5.26660148]
[1747982026309,0.19918506,110450.0,110440.0,5.26660148]
[1747982026538,0.19918506,110450.0,110440.0,5.27160148]
[1747982027069,0.19013128,110450.0,110440.0,5.24624806]
[1747982027212,0.19013128,110450.0,110440.0,4.97500806]
[1747982027415,0.19013128,110450.0,110440.0,5.24624806]
[1747982027839,0.19013128,110450.0,110440.0,5.27764806]
[1747982028046,0.18413128,110450.0,110440.0,5.27764806]
[1747982028416,0.18413128,110450.0,110440.0,5.27264806]
[1747982028841,0.18413128,110450.0,110440.0,5.27664806]
[1747982029454,0.18413103,110450.0,110440.0,5.27664806]
[1747982029656,0.19318481,110450.0,110440.0,5.27164806]
[1747982029850,0.20223818,110450.0,110440.0,5.28070275]
[1747982030025,0.20223818,110450.0,110440.0,5.28370275]
[1747982030526,0.20223818,110450.0,110440.0,5.27464806]
[1747982030909,0.20223818,110450.0,110440.0,5.28370275]
[1747982031108,0.20223818,110450.0,110440.0,5.27464806]
[1747982031267,0.19318481,110450.0,110440.0,5.27464806]
[1747982031691,0.19318481,110450.0,110440.0,5.0576115]
[1747982032299,0.18413119,110450.0,110440.0,5.0576115]
[1747982032504,0.17507741,110450.0,110440.0,4.7549715]
[1747982032697,0.23787741,110450.0,110440.0,5.0262115]
[1747982032903,0.23787741,110450.0,110440.0,4.450086]
[1747982033098,0.23787741,110450.0,110440.0,4.178846]
[1747982033366,0.23787741,110450.0,110440.0,4.450086]
[1747982033575,0.0628,110450.0,110440.0,4.450086]
[1747982033922,0.07185313,110450.0,110440.0,4.450086]
[1747982034885,0.07185313,110450.0,110440.0,4.4611406]
[1747982035181,0.07185313,110450.0,110440.0,4.8517006]
[1747982035420,0.08090634,110450.0,110440.0,4.8517006]
[1747982035593,0.08090634,110450.0,110440.0,5.0237398]
[1747982035813,0.07185313,110450.0,110440.0,4.77060876]
[1747982036043,0.35153013,110450.0,110440.0,4.05208]
[1747982036243,0.35153013,110450.0,110440.0,4.32332]
[1747982036397,0.34247667,110450.0,110440.0,4.5044138]
[1747982036602,0.34247667,110450.0,110440.0,3.8098538]
[1747982036785,0.34247667,110450.0,110440.0,2.23202]
[1747982037587,0.0628,110450.0,110440.0,2.42216832]
[1747982037790,0.0628,110450.0,110440.0,2.44027679]
[1747982038028,0.99971908,110460.0,110440.0,2.43122194]
[1747982038202,0.8005528,110460.0,110450.0,3.9547109]
[1747982038407,0.65971924,110460.0,110450.0,3.94565728]
[1747982038696,0.65971924,110460.0,110450.0,3.76457987]
[1747982038905,0.65971924,110460.0,110450.0,3.77363365]
[1747982039107,0.65066669,110460.0,110450.0,3.78268735]
[1747982039337,0.64161397,110460.0,110450.0,3.76457987]
[1747982039968,0.64161397,110460.0,110450.0,3.77363365]
[1747982040177,0.40660568,110460.0,110450.0,3.96376476]
[1747982040521,0.65226669,110460.0,110450.0,3.755526]
[1747982040934,0.65326669,110460.0,110450.0,3.755526]
[1747982041275,0.65326669,110460.0,110450.0,4.026806]
[1747982042306,0.47220568,110460.0,110450.0,4.026806]
[1747982042685,0.08370568,110460.0,110450.0,4.026806]
[1747982044039,0.0656,110460.0,110450.0,4.450166]
[1747982044663,0.001,110460.0,110450.0,4.450166]
[1747982046446,0.0636,110460.0,110450.0,4.450166]
[1747982046922,0.0626,110460.0,110450.0,4.450166]
[1747982047147,0.0626,110460.0,110450.0,4.451166]
[1747982047378,0.4035,110470.0,110450.0,4.451166]
[1747982047587,0.49304556,110470.0,110460.0,3.755526]
[1747982047999,0.49304556,110470.0,110450.0,0.42536]
[1747982048202,0.42954556,110470.0,110460.0,0.27128]
[1747982048553,0.49434556,110470.0,110460.0,0.27128]
[1747982049634,0.49534556,110470.0,110460.0,0.66188]
[1747982049834,0.49534556,110470.0,110460.0,4.417406]
[1747982053280,0.49534556,110470.0,110460.0,0.99408]
[1747982057990,0.49534556,110470.0,110460.0,0.7228]
[1747982058198,0.49534556,110470.0,110460.0,0.99408]
[1747982058764,0.48814887,110470.0,110460.0,0.99408]
[1747982060617,0.48814887,110470.0,110460.0,1.41744]
[1747982062866,0.15534556,110470.0,110460.0,1.41744]
[1747982063067,0.001,110470.0,110460.0,1.41556]
[1747982063466,0.001,110470.0,110460.0,1.44626]
[1747982064084,0.001,110470.0,110460.0,1.47766]
[1747982068930,0.001,110470.0,110460.0,1.44626]
[1747982070212,0.001,110470.0,110460.0,0.841839]
[1747982070423,0.001,110470.0,110460.0,1.232399]
[1747982070962,0.001,110470.0,110460.0,1.201699]
[1747982072214,0.001,110470.0,110460.0,1.232899]
[1747982072800,0.001,110470.0,110460.0,1.264899]
[1747982073227,0.18204462,110470.0,110460.0,1.264899]
[1747982073645,0.18104198,110480.0,110460.0,1.264899]
[1747982073823,0.24514198,110480.0,110470.0,3.54396775]
[1747982073990,0.24514198,110480.0,110470.0,3.541705]
[1747982075068,0.24714198,110480.0,110470.0,3.541705]
[1747982076522,0.24914198,110480.0,110470.0,3.541705]
[1747982076761,0.24914198,110480.0,110470.0,3.812945]
[1747982083633,0.24914198,110480.0,110470.0,3.541705]
[1747982083770,0.24914198,110480.0,110470.0,4.234345]
[1747982087486,0.24914198,110480.0,110470.0,4.624865]
[1747982093399,0.24914198,110480.0,110470.0,4.353625]
[1747982093608,0.24914198,110480.0,110470.0,4.624825]
[1747982100429,0.58914198,110480.0,110470.0,1.0812]
[1747982100598,0.67868754,110480.0,110470.0,0.81]
[1747982100978,0.67868754,110480.0,110470.0,1.0812]
[1747982101212,0.67868754,110480.0,110470.0,1.08124]
[1747982104480,0.67868754,110480.0,110470.0,4.622945]
[1747982107562,0.67868754,110480.0,110470.0,3.62984]
[1747982114086,0.67868754,110480.0,110470.0,1.69848]
[1747982114670,0.67868754,110480.0,110470.0,1.46478]
[1747982114879,0.67868754,110480.0,110470.0,1.40778]
[1747982118397,0.67868754,110480.0,110470.0,1.28108]
[1747982118604,0.67868754,110480.0,110470.0,0.39052]
[1747982118825,1.06428754,110480.0,110470.0,0.81004]
[1747982119030,0.67868754,110480.0,110470.0,0.81004]
[1747982121796,0.59214832,110440.0,110430.0,0.00017885]
[1747982122007,0.68169388,110440.0,110430.0,0.00017885]
[1747982122211,0.68169388,110440.0,110430.0,0.68913885]
[1747982122447,0.68169388,110440.0,110430.0,0.69213885]
[1747982122675,0.68169388,110440.0,110430.0,0.68913885]
[1747982123373,0.68169388,110440.0,110430.0,0.00017885]
[1747982123585,0.68169388,110440.0,110430.0,0.68913885]
[1747982124204,0.68269388,110440.0,110430.0,0.69313885]
[1747982124423,0.02717045,110410.0,110400.0,0.0814334]
[1747982124624,0.02717045,110410.0,110400.0,4.43150958]
[1747982125041,0.0342276,110410.0,110400.0,4.44962543]
[1747982125254,0.21537061,110410.0,110400.0,4.44056787]
[1747982125674,0.20025698,110410.0,110400.0,4.43551023]
[1747982125879,0.20125698,110410.0,110400.0,4.71379023]
[1747982126089,0.21031404,110410.0,110400.0,3.95241415]
[1747982126290,0.20125722,110410.0,110400.0,4.65051203]
[1747982126512,0.20125722,110410.0,110400.0,4.65956983]
[1747982126720,0.20125722,110410.0,110400.0,3.97052983]
[1747982126929,0.20125722,110410.0,110400.0,4.65956983]
[1747982127144,0.26455722,110410.0,110400.0,3.94335618]
[1747982127343,0.25550016,110410.0,110400.0,1.75481118]
[1747982127545,0.25550016,110410.0,110400.0,2.02609118]
[1747982128185,0.25450016,110410.0,110400.0,2.01909118]
[1747982128373,0.25350016,110410.0,110400.0,2.01509118]
[1747982128577,0.25450016,110410.0,110400.0,2.01809118]
[1747982128993,0.25350016,110410.0,110400.0,2.01509118]
[1747982129366,0.25450016,110410.0,110400.0,2.01509118]
[1747982129903,0.24544301,110410.0,110400.0,2.02414915]
[1747982130664,0.24544301,110410.0,110400.0,2.01509118]
[1747982132380,0.24544301,110410.0,110400.0,2.01521118]
[1747982139348,0.24544301,110410.0,110400.0,1.74389118]
[1747982139552,0.24544301,110410.0,110400.0,2.01525118]
[1747982139966,0.24544301,110410.0,110400.0,1.74389118]
[1747982140128,0.24544301,110410.0,110400.0,2.01525118]
[1747982140775,0.72058857,110410.0,110400.0,2.01525118]
[1747982143508,0.33498857,110410.0,110400.0,2.01525118]
[1747982144084,0.33498857,110410.0,110400.0,1.32605118]
[1747982144289,0.4071419,110410.0,110400.0,0.80857118]
[1747982144470,0.8059703,110410.0,110400.0,0.80857118]
[1747982144672,0.7471419,110410.0,110400.0,1.07997118]
[1747982144868,0.7471419,110410.0,110400.0,1.08840477]
[1747982145316,0.7461419,110410.0,110400.0,1.08840477]
[1747982145804,0.67598857,110410.0,110400.0,1.08940477]
[1747982146658,0.67698857,110410.0,110400.0,1.08940477]
[1747982148821,0.67698857,110410.0,110400.0,1.08097118]
[1747982152197,0.67698857,110410.0,110400.0,0.39165118]
[1747982152412,0.67698857,110410.0,110400.0,4.62135618]
[1747982154763,1.06258857,110410.0,110400.0,4.62135618]
[1747982159435,1.06258857,110410.0,110400.0,0.39165118]
[1747982159639,1.06258857,110410.0,110400.0,1.07965118]
[1747982168220,0.67698857,110410.0,110400.0,1.07965118]
[1747982168602,0.67698857,110410.0,110400.0,0.39165118]
[1747982168805,0.67698857,110410.0,110400.0,1.07969118]
[1747982169646,0.20836958,110380.0,110360.0,0.1073789]
[1747982169855,0.19931673,110390.0,110380.0,0.01467209]
[1747982170000,0.19931673,110390.0,110380.0,3.55637709]
[1747982170214,0.19931673,110390.0,110380.0,3.54221721]
[1747982170839,0.19931673,110390.0,110380.0,3.81365721]
[1747982171514,0.19931673,110390.0,110380.0,4.23025721]
[1747982171863,0.20031673,110390.0,110380.0,4.23225721]
[1747982172062,0.00905829,110390.0,110380.0,4.42250795]
[1747982172267,0.17870194,110390.0,110380.0,4.23225721]
[1747982172710,0.19023079,110400.0,110380.0,4.23425721]
[1747982172862,0.19023079,110400.0,110390.0,3.541705]
[1747982174038,0.19123079,110400.0,110390.0,3.541705]
[1747982174369,0.19023079,110400.0,110390.0,3.541705]
[1747982174831,0.22333079,110400.0,110390.0,3.542705]
[1747982175573,0.25553079,110400.0,110390.0,3.814145]
[1747982177283,0.25553079,110400.0,110390.0,3.8140535]
[1747982179970,0.25553079,110400.0,110390.0,4.2048935]
[1747982180181,0.18115942,110400.0,110390.0,4.2048935]
[1747982180376,0.20833217,110400.0,110390.0,4.2048935]
[1747982180579,0.01811536,110400.0,110390.0,4.21395229]
[1747982180785,0.02717275,110400.0,110390.0,4.21395229]
[1747982180997,0.00905723,110400.0,110390.0,4.4132447]
[1747982181214,0.00905674,110410.0,110400.0,0.19927478]
[1747982181420,0.03622678,110410.0,110400.0,3.74994617]
[1747982181635,0.02716996,110410.0,110400.0,3.74994617]
[1747982181837,0.02716996,110410.0,110400.0,3.74088878]
[1747982182041,0.03622711,110410.0,110400.0,3.74088878]
[1747982182279,0.03622711,110410.0,110400.0,3.74994625]
[1747982182878,0.03622694,110410.0,110400.0,3.75900364]
[1747982183242,0.046284,110410.0,110400.0,3.75900364]
[1747982183822,0.03722694,110410.0,110400.0,3.75900364]
[1747982184048,0.03822694,110410.0,110400.0,3.75900364]
[1747982184706,0.2193706,110410.0,110400.0,4.01228894]
[1747982184955,0.26655722,110410.0,110400.0,3.541614]
[1747982185170,0.26655722,110410.0,110400.0,4.228734]
[1747982185396,0.26655722,110410.0,110400.0,3.541614]
[1747982185602,0.26655722,110410.0,110400.0,1.22402]
[1747982185821,0.26655722,110410.0,110400.0,1.14102]
[1747982189730,0.35610278,110410.0,110400.0,0.86962]
[1747982189857,0.35610278,110410.0,110400.0,1.14102]
[1747982194531,0.26655722,110410.0,110400.0,1.32217942]
[1747982194738,0.0673,110410.0,110400.0,1.34935258]
[1747982194941,0.07635649,110410.0,110400.0,1.35840997]
[1747982195146,0.02011323,110410.0,110400.0,0.67128997]
[1747982195354,0.02011323,110410.0,110400.0,1.35840997]
[1747982195560,0.10212736,110410.0,110400.0,1.35840997]
[1747982195766,0.28327037,110410.0,110400.0,1.14102]
[1747982195986,0.26515714,110410.0,110400.0,1.14102]
[1747982196336,0.26515714,110410.0,110400.0,1.34029494]
[1747982196743,0.26515714,110410.0,110400.0,1.3312373]
[1747982196948,0.09307078,110410.0,110400.0,1.35841013]
[1747982197179,0.09307078,110410.0,110400.0,1.36746752]
[1747982197384,0.09307078,110410.0,110400.0,1.34935266]
[1747982198207,0.09307078,110410.0,110400.0,0.68034752]
[1747982198440,0.09307078,110410.0,110400.0,1.36746752]
[1747982199817,0.09307078,110410.0,110400.0,1.14185903]
[1747982200125,0.09307078,110410.0,110400.0,0.92944458]
[1747982200545,0.27421379,110410.0,110400.0,0.92038702]
[1747982200739,0.27421379,110410.0,110400.0,0.93850238]
[1747982201347,0.26515705,110410.0,110400.0,0.63992922]
[1747982201563,0.26515705,110410.0,110400.0,1.31118694]
[1747982203763,0.26515705,110410.0,110400.0,1.32024458]
[1747982203971,0.26515705,110410.0,110400.0,1.11191192]
[1747982204172,0.26515705,110410.0,110400.0,0.84051192]
[1747982204374,0.26515705,110410.0,110400.0,1.11191192]
[1747982205629,0.26515705,110410.0,110400.0,1.31118703]
[1747982205868,0.26515705,110410.0,110400.0,1.32024467]
[1747982206722,0.26515705,110410.0,110400.0,1.32930223]
[1747982207223,0.26515705,110410.0,110400.0,1.31118703]
[1747982208002,0.08401404,110410.0,110400.0,1.32930206]
[1747982208670,0.09307119,110410.0,110400.0,1.32930206]
[1747982209075,0.09307119,110410.0,110400.0,1.42930223]
[1747982209572,0.08401404,110410.0,110400.0,1.4383597]
[1747982209784,0.08401404,110410.0,110400.0,1.43835912]
[1747982211909,0.26515705,110410.0,110400.0,1.42024426]
[1747982213046,0.26515705,110410.0,110400.0,1.41118703]
[1747982213563,0.26515705,110410.0,110400.0,1.42024467]
[1747982213906,0.26515705,110410.0,110400.0,1.42930223]
[1747982214112,0.26515705,110410.0,110400.0,1.41118703]
[1747982214339,0.26515705,110410.0,110400.0,1.42024467]
[1747982214554,0.26515705,110410.0,110400.0,1.41118703]
[1747982214733,0.26515705,110410.0,110400.0,1.42930223]
[1747982214951,0.08401404,110410.0,110400.0,1.43835962]
[1747982215391,0.08401372,110410.0,110400.0,1.43835962]
[1747982215551,0.0659,110410.0,110400.0,1.43835962]
[1747982215729,0.002,110410.0,110400.0,1.43835962]
[1747982216288,0.01105641,110410.0,110400.0,1.43835962]
[1747982216526,0.001,110410.0,110400.0,1.52790518]
[1747982216705,0.09922366,110420.0,110410.0,0.20831346]
[1747982217122,0.09922366,110420.0,110410.0,3.33001946]
[1747982217625,0.09922366,110420.0,110410.0,3.807786]
[1747982218040,0.10022415,110420.0,110410.0,3.807786]
[1747982218473,0.27229492,110420.0,110410.0,3.807786]
[1747982218683,0.263239,110420.0,110410.0,3.807786]
[1747982219060,0.264239,110420.0,110410.0,3.807786]
[1747982220717,0.264239,110420.0,110410.0,3.807746]
[1747982220921,0.264239,110420.0,110410.0,3.536386]
[1747982221216,0.19019999,110410.0,110400.0,0.4908]
[1747982221399,0.25139999,110410.0,110400.0,2.93474]
[1747982221641,0.25139999,110410.0,110400.0,3.2061]
[1747982222169,0.25139999,110410.0,110400.0,2.144]
[1747982222379,0.25139999,110410.0,110400.0,1.633]
[1747982222588,0.25139999,110410.0,110400.0,1.5443]
[1747982222795,0.25139999,110410.0,110400.0,1.508]
[1747982223233,0.25139999,110410.0,110400.0,1.509]
[1747982225223,0.25139999,110410.0,110400.0,1.89976]
[1747982228580,0.26045689,110410.0,110400.0,2.10809275]
[1747982228823,0.26045689,110410.0,110400.0,2.09903511]
[1747982229159,0.25139999,110410.0,110400.0,2.08997739]
[1747982229594,0.24234301,110410.0,110400.0,1.90881797]
[1747982233351,0.24234301,110410.0,110400.0,1.89984]
[1747982233685,0.24234301,110410.0,110400.0,1.90889797]
[1747982236687,0.24234301,110410.0,110400.0,1.89984]
[1747982242516,0.24234301,110410.0,110400.0,1.21376]
[1747982242734,0.24234301,110410.0,110400.0,1.89984]
[1747982245372,0.07025665,110410.0,110400.0,2.08099942]
[1747982245600,0.07931306,110410.0,110400.0,2.13083089]
[1747982245813,0.07931306,110410.0,110400.0,1.92311374]
[1747982245814,0.01811306,110410.0,110400.0,1.92311374]
[1747982246031,0.02716988,110410.0,110400.0,1.89925518]
[1747982246243,0.21736987,110410.0,110400.0,1.88114015]
[1747982246446,0.20831346,110410.0,110400.0,1.69092285]
[1747982246648,0.26325681,110410.0,110400.0,1.69998082]
[1747982246786,0.26325681,110410.0,110400.0,1.7090387]
[1747982246988,0.26325681,110410.0,110400.0,1.7180965]
[1747982247187,0.26325681,110410.0,110400.0,1.89925592]
[1747982247390,0.26325681,110410.0,110400.0,1.90831364]
[1747982247631,0.26325681,110410.0,110400.0,1.91737128]
[1747982249701,0.26325681,110410.0,110400.0,1.90831364]
[1747982249910,0.24514301,110410.0,110400.0,1.41952285]
[1747982250118,0.24514301,110410.0,110400.0,1.69092285]
[1747982252711,0.24514301,110410.0,110400.0,1.00604285]
[1747982252991,0.24514301,110410.0,110400.0,1.69092285]
[1747982262003,0.24514301,110410.0,110400.0,1.69092285]
[1747982263962,0.24514301,110410.0,110400.0,1.51863908]
[1747982264162,0.24514301,110410.0,110400.0,1.52769705]
[1747982266936,0.24514301,110410.0,110400.0,1.24723908]
[1747982267149,0.24514301,110410.0,110400.0,1.51863908]
[1747982270516,0.25420016,110410.0,110400.0,1.51863908]
[1747982275550,0.25420016,110410.0,110400.0,1.51743908]
[1747982279550,0.24514301,110410.0,110400.0,1.51743908]
[1747982279732,0.25419991,110410.0,110400.0,1.51743908]
[1747982279911,0.28137003,110410.0,110400.0,1.51743908]
[1747982280109,0.27231362,110410.0,110400.0,1.51743908]
[1747982281089,0.26325656,110410.0,110400.0,1.51743908]
[1747982281302,0.28137077,110410.0,110400.0,1.51743908]
[1747982281750,0.23205591,110410.0,110400.0,1.72577183]
[1747982281977,0.01811298,110410.0,110400.0,1.72577183]
[1747982282201,0.21736979,110410.0,110400.0,1.53555493]
[1747982282407,0.28306979,110410.0,110400.0,1.53555493]
[1747982282863,0.28306979,110410.0,110400.0,1.55367045]
[1747982283057,0.07095592,110420.0,110410.0,0.19925673]
[1747982283264,0.03925567,110420.0,110410.0,2.8408543]
[1747982283463,0.04831159,110420.0,110410.0,2.82274099]
[1747982283674,0.05736767,110420.0,110410.0,2.83179789]
[1747982283847,0.05736767,110420.0,110410.0,2.84991128]
[1747982284265,0.05836767,110420.0,110410.0,2.84991128]
[1747982284493,0.05736767,110420.0,110410.0,2.84991128]
[1747982284847,0.05736767,110420.0,110410.0,2.84185471]
[1747982285160,0.27109476,110420.0,110410.0,2.84185463]
[1747982285370,0.280151,110420.0,110410.0,2.8509112]
[1747982285571,0.279151,110420.0,110410.0,2.8509112]
[1747982285963,0.279151,110420.0,110410.0,2.84285463]
[1747982286385,0.279151,110420.0,110410.0,2.85191128]
[1747982287399,0.28820733,110420.0,110410.0,2.85191128]
[1747982288184,0.28820733,110420.0,110410.0,2.83379789]
[1747982288392,0.27915141,110420.0,110410.0,2.84285471]
[1747982288616,0.27915141,110420.0,110410.0,2.85191145]
[1747982289456,0.27915141,110420.0,110410.0,2.8609681]
[1747982290277,0.08896848,110420.0,110410.0,2.86096769]
[1747982290688,0.09802481,110420.0,110410.0,2.85191112]
[1747982291631,0.27915141,110420.0,110410.0,2.84285447]
[1747982291840,0.27915141,110420.0,110410.0,2.83379773]
[1747982292042,0.27009533,110420.0,110410.0,2.83379806]
[1747982292262,0.27009533,110420.0,110410.0,2.84285488]
[1747982292416,0.27009533,110420.0,110410.0,2.86096827]
[1747982292849,0.0799124,110420.0,110410.0,2.86096769]
[1747982295369,0.08896873,110420.0,110410.0,2.86096769]
[1747982295895,0.08896873,110420.0,110410.0,3.54452769]
[1747982297049,0.27009533,110420.0,110410.0,3.53547112]
[1747982297757,0.08896873,110420.0,110410.0,3.53547112]
[1747982298050,0.0799124,110420.0,110410.0,3.54452769]
[1747982299122,0.08896873,110420.0,110410.0,3.31654268]
[1747982299297,0.08896873,110420.0,110410.0,3.48866912]
[1747982300780,0.079912,110420.0,110410.0,3.49772569]
[1747982300985,0.09802383,110420.0,110410.0,3.49772569]
[1747982301204,0.10708007,110420.0,110410.0,3.49772569]
[1747982301763,0.10708007,110420.0,110410.0,3.6018121]
[1747982301764,0.0618,110420.0,110410.0,3.6018121]
[1747982301918,0.07075493,110430.0,110420.0,0.20829459]
[1747982302122,0.07980978,110430.0,110420.0,2.88353915]
[1747982302318,0.09792038,110430.0,110420.0,2.88353915]
[1747982303139,0.09797149,110430.0,110420.0,2.88353915]
[1747982303694,0.10097149,110430.0,110420.0,2.88353915]
[1747982303932,0.10097141,110430.0,110420.0,2.88353915]
[1747982304137,0.09191615,110430.0,110420.0,2.88353915]
[1747982304320,0.09191607,110430.0,110420.0,2.88353915]
[1747982304569,0.10097141,110430.0,110420.0,2.88353915]
[1747982305075,0.10097141,110430.0,110420.0,2.88357915]
[1747982305358,0.09191607,110430.0,110420.0,2.88357915]
[1747982305530,0.09191599,110430.0,110420.0,2.88357915]
[1747982305730,0.06475111,110430.0,110420.0,2.88357915]
[1747982305935,0.07380604,110430.0,110420.0,2.88357915]
[1747982306182,0.08286105,110430.0,110420.0,2.88357915]
[1747982306300,0.09191623,110430.0,110420.0,2.88357915]
[1747982306748,0.07380588,110430.0,110420.0,2.88357915]
[1747982306950,0.07380596,110430.0,110420.0,2.88357915]
[1747982307597,0.07380588,110430.0,110420.0,2.88357915]
[1747982307804,0.00305111,110430.0,110420.0,2.89812]
[1747982308433,0.0625,110450.0,110440.0,0.02716307]
[1747982308657,0.03155117,110450.0,110440.0,3.58258552]
[1747982308861,5.117e-05,110450.0,110440.0,3.58032228]
[1747982309303,0.0641,110470.0,110460.0,0.22276001]
[1747982309521,0.09125365,110480.0,110470.0,0.19914194]
[1747982309732,0.26323081,110480.0,110470.0,3.04710929]
[1747982309930,0.26323081,110480.0,110470.0,3.05616143]
[1747982310055,0.26323081,110480.0,110470.0,3.06521349]
[1747982310956,0.26423081,110480.0,110470.0,3.06521349]
[1747982311941,0.25517965,110480.0,110470.0,2.86607123]
[1747982312167,0.25517965,110480.0,110470.0,2.87512337]
[1747982312709,0.25517965,110480.0,110470.0,3.05616799]
[1747982312922,0.25517965,110480.0,110470.0,3.06522005]
[1747982313365,0.25517965,110480.0,110470.0,3.05616799]
[1747982313747,0.25517965,110480.0,110470.0,2.86607123]
[1747982314194,0.24612824,110480.0,110470.0,2.857019]
[1747982315037,0.24612824,110480.0,110470.0,2.86607123]
[1747982315239,0.24612824,110480.0,110470.0,2.857019]
[1747982318759,0.24612824,110480.0,110470.0,2.86607123]
[1747982318905,0.24612824,110480.0,110470.0,2.857019]
[1747982319593,0.24612824,110480.0,110470.0,2.857059]
[1747982319752,0.24612824,110480.0,110470.0,2.86611114]
[1747982320685,0.24612824,110480.0,110470.0,2.857059]
[1747982321946,0.24612824,110480.0,110470.0,2.86611123]
[1747982323023,0.24225824,110480.0,110470.0,2.86611123]
[1747982323752,0.24225824,110480.0,110470.0,2.857059]
[1747982324259,0.24225824,110480.0,110470.0,2.585739]
[1747982324462,0.24225824,110480.0,110470.0,2.856979]
[1747982326170,0.24225824,110480.0,110470.0,3.267819]
[1747982326523,0.24225824,110480.0,110470.0,2.996579]
[1747982326726,0.24207812,110480.0,110470.0,3.267819]
[1747982327329,0.24207812,110480.0,110470.0,3.036822]
[1747982329712,0.24207812,110480.0,110470.0,3.22691876]
[1747982329946,0.24207812,110480.0,110470.0,3.23597074]
[1747982330378,0.06104988,110480.0,110470.0,3.3581607]
[1747982330603,0.01005083,110480.0,110470.0,3.3581607]
[1747982330831,0.01910167,110480.0,110470.0,3.3581607]
[1747982331310,0.001,110480.0,110470.0,3.3581607]
[1747982331501,0.01005083,110480.0,110470.0,3.3581607]
[1747982331707,0.01910167,110480.0,110470.0,3.3591607]
[1747982331915,0.01810167,110480.0,110470.0,3.3591607]
[1747982332106,0.01810167,110480.0,110470.0,3.3601607]
[1747982332472,0.27161484,110490.0,110480.0,0.19913048]
[1747982332667,0.08155179,110490.0,110480.0,2.65242887]